fUSD/lending_fUSD_20240823
["ID","MTS","AMOUNT","RATE_DAILY","PERIOD"]
[335669512,1724407876340,-2288.04,0.00010999,2]
[335669513,1724407876351,-2288.04,0.00010999,2]
[335669514,1724407876361,-2288.08391579,0.00010999,2]
[335669515,1724407876370,-767.15,0.00010999,2]
[335669516,1724407876378,-767.15,0.00010999,2]
[335669517,1724407876388,-767.15,0.00010999,2]
[335669518,1724407876397,-4148.74,0.00010999,2]
[335669519,1724407876409,-767.15,0.00010999,2]
[335669520,1724407876420,-4148.74,0.00010999,2]
[335669521,1724407876429,-767.15,0.00010999,2]
[335669522,1724407876439,-4148.74,0.00010999,2]
[335669523,1724407876451,-767.15,0.00010999,2]
[335669524,1724407876461,-4148.74,0.00010999,2]
[335669525,1724407876471,-767.15,0.00010999,2]
[335669526,1724407876481,-4148.74,0.00010999,2]
[335669527,1724407876491,-767.15,0.00010999,2]
[335669528,1724407876502,-4148.74,0.00010999,2]
[335669529,1724407876511,-767.15,0.00010999,2]
[335669530,1724407876522,-4148.74,0.00010999,2]
[335669531,1724407876532,-767.33923903,0.00010999,2]
[335669532,1724407876542,-4148.74,0.00010999,2]
[335669533,1724407876552,-4148.74,0.00010999,2]
[335669534,1724407876561,-4148.74,0.00010999,2]
[335669535,1724407876571,-4148.92184034,0.00010999,2]
[335669536,1724407876582,-1051.09,0.00010999,2]
[335669537,1724407876592,-1051.09,0.00010999,2]
[335669538,1724407876602,-1051.09,0.00010999,2]
[335669539,1724407876612,-1051.09,0.00010999,2]
[335669540,1724407876623,-1051.09,0.00010999,2]
[335669541,1724407876634,-1599.61,0.00010999,2]
[335669542,1724407876643,-1051.09,0.00010999,2]
[335669543,1724407876652,-1599.61,0.00010999,2]
[335669544,1724407876662,-1051.09,0.00010999,2]
[335669545,1724407876672,-1599.61,0.00010999,2]
[335669546,1724407876682,-1051.09,0.00010999,2]
[335669547,1724407876693,-1599.61,0.00010999,2]
[335669548,1724407876702,-1051.09,0.00010999,2]
[335669549,1724407876712,-1599.61,0.00010999,2]
[335669550,1724407876721,-1051.09,0.00010999,2]
[335669551,1724407876730,-1599.61,0.00010999,2]
[335669552,1724407876739,-1051.14165148,0.00010999,2]
[335669553,1724407876748,-1599.61,0.00010999,2]
[335669554,1724407876757,-1599.61,0.00010999,2]
[335669555,1724407876767,-1599.61,0.00010999,2]
[335669556,1724407876776,-1599.66389506,0.00010999,2]
[335669557,1724407876786,-1161.47,0.00010999,2]
[335669558,1724407876794,-1161.47,0.00010999,2]
[335669559,1724407876804,-1161.47,0.00010999,2]
[335669560,1724407876813,-1161.47,0.00010999,2]
[335669561,1724407876822,-1161.47,0.00010999,2]
[335669562,1724407876831,-1161.47,0.00010999,2]
[335669563,1724407876840,-1161.47,0.00010999,2]
[335669564,1724407876849,-1161.47,0.00010999,2]
[335669565,1724407876859,-1161.47,0.00010999,2]
[335669566,1724407876869,-1161.47,0.00010999,2]
[335669567,1724407876878,-1161.64991177,0.00010999,2]
[335669568,1724407876888,-2951.19,0.00010999,2]
[335669569,1724407876897,-2951.19,0.00010999,2]
[335669570,1724407876907,-2951.19,0.00010999,2]
[335669571,1724407876916,-2951.19,0.00010999,2]
[335669572,1724407876925,-2951.19,0.00010999,2]
[335669573,1724407876934,-2951.19,0.00010999,2]
[335669574,1724407876943,-2951.19,0.00010999,2]
[335669575,1724407876953,-2951.19,0.00010999,2]
[335669576,1724407876962,-2951.19,0.00010999,2]
[335669577,1724407876972,-2951.19,0.00010999,2]
[335669578,1724407876981,-608.37,0.00010999,2]
[335669579,1724407876991,-608.37,0.00010999,2]
[335669580,1724407877001,-2951.41,0.00010999,2]
[335669581,1724407877011,-608.37,0.00010999,2]
[335669582,1724407877020,-608.37,0.00010999,2]
[335669583,1724407877029,-608.37,0.00010999,2]
[335669584,1724407877039,-608.37,0.00010999,2]
[335669585,1724407877049,-608.37,0.00010999,2]
[335669586,1724407877058,-608.37,0.00010999,2]
[335669587,1724407877070,-608.37,0.00010999,2]
[335669588,1724407877080,-608.37,0.00010999,2]
[335669589,1724407877090,-608.60742251,0.00010999,2]
[335669590,1724407877100,-934.68,0.00010999,2]
[335669591,1724407877111,-843.91,0.00010999,2]
[335669592,1724407877120,-934.68,0.00010999,2]
[335669593,1724407877129,-934.68,0.00010999,2]
[335669594,1724407877139,-843.91,0.00010999,2]
[335669595,1724407877150,-151.0,0.00010999,2]
[335669596,1724407877160,-936.55,0.00010999,2]
[335669597,1724407877170,-934.68,0.00010999,2]
[335669598,1724407877179,-843.91,0.00010999,2]
[335669599,1724407877189,-936.55,0.00010999,2]
[335669600,1724407877198,-843.91,0.00010999,2]
[335669601,1724407877208,-151.0,0.00010999,2]
[335669602,1724407877217,-936.55,0.00010999,2]
[335669603,1724407877226,-843.91,0.00010999,2]
[335669604,1724407877236,-936.55,0.00010999,2]
[335669605,1724407877245,-843.91,0.00010999,2]
[335669606,1724407877254,-936.55,0.00010999,2]
[335669607,1724407877263,-843.91,0.00010999,2]
[335669608,1724407877272,-934.68,0.00010999,2]
[335669609,1724407877282,-936.55,0.00010999,2]
[335669610,1724407877290,-843.91,0.00010999,2]
[335669611,1724407877299,-934.68,0.00010999,2]
[335669612,1724407877308,-936.55,0.00010999,2]
[335669613,1724407877317,-843.91,0.00010999,2]
[335669614,1724407877327,-934.68,0.00010999,2]
[335669615,1724407877336,-936.55,0.00010999,2]
[335669616,1724407877346,-844.07,0.00010999,2]
[335669617,1724407877355,-936.55,0.00010999,2]
[335669618,1724407877364,-934.68,0.00010999,2]
[335669619,1724407877375,-936.55,0.00010999,2]
[335669620,1724407877385,-936.68729534,0.00010999,2]
[335669621,1724407877394,-934.68,0.00010999,2]
[335669622,1724407877404,-934.75801676,0.00010999,2]
[335669623,1724407877414,-1099.97,0.00010999,2]
[335669624,1724407877423,-1099.97,0.00010999,2]
[335669625,1724407877433,-205.203585,0.00010999,2]
[335669626,1724407877443,-1099.97,0.00010999,2]
[335669627,1724407877452,-151.0,0.00010999,2]
[335669628,1724407877462,-1099.97,0.00010999,2]
[335669629,1724407877471,-1099.97,0.00010999,2]
[335669630,1724407877481,-1099.97,0.00010999,2]
[335669631,1724407877490,-1099.97,0.00010999,2]
[335669632,1724407877500,-1099.97,0.00010999,2]
[335669633,1724407877509,-1099.97,0.00010999,2]
[335669634,1724407877518,-1099.97,0.00010999,2]
[335669635,1724407877527,-2628.96,0.00010999,2]
[335669636,1724407877536,-1100.04,0.00010999,2]
[335669637,1724407877545,-2628.96,0.00010999,2]
[335669638,1724407877554,-2628.96,0.00010999,2]
[335669639,1724407877564,-2628.96,0.00010999,2]
[335669640,1724407877574,-500.0,0.00010999,2]
[335669641,1724407877583,-2628.96,0.00010999,2]
[335669642,1724407877592,-500.0,0.00010999,2]
[335669643,1724407877601,-2628.96,0.00010999,2]
[335669644,1724407877611,-500.0,0.00010999,2]
[335669645,1724407877620,-2628.96,0.00010999,2]
[335669646,1724407877629,-500.0,0.00010999,2]
[335669647,1724407877639,-2628.96,0.00010999,2]
[335669648,1724407877648,-205.203585,0.00010999,2]
[335669649,1724407877657,-500.0,0.00010999,2]
[335669650,1724407877667,-500.0,0.00010999,2]
[335669651,1724407877676,-2628.96,0.00010999,2]
[335669652,1724407877686,-500.0,0.00010999,2]
[335669653,1724407877695,-500.0,0.00010999,2]
[335669654,1724407877704,-2628.96,0.00010999,2]
[335669655,1724407877714,-500.0,0.00010999,2]
[335669656,1724407877723,-2629.12,0.00010999,2]
[335669657,1724407877732,-500.0,0.00010999,2]
[335669658,1724407877741,-454.06306052,0.00010999,2]
[335669659,1724407877750,-1019.97,0.00010999,2]
[335669660,1724407877759,-1019.97,0.00010999,2]
[335669661,1724407877768,-1024.76,0.00010999,2]
[335669662,1724407877777,-1019.97,0.00010999,2]
[335669663,1724407877787,-1019.97,0.00010999,2]
[335669664,1724407877796,-693.97,0.00010999,2]
[335669665,1724407877805,-1024.76,0.00010999,2]
[335669666,1724407877815,-693.97,0.00010999,2]
[335669667,1724407877824,-1019.97,0.00010999,2]
[335669668,1724407877833,-1024.76,0.00010999,2]
[335669669,1724407877843,-693.97,0.00010999,2]
[335669670,1724407877853,-1019.97,0.00010999,2]
[335669671,1724407877862,-1024.76,0.00010999,2]
[335669672,1724407877872,-693.97,0.00010999,2]
[335669673,1724407877882,-1019.97,0.00010999,2]
[335669674,1724407877897,-1024.76,0.00010999,2]
[335669675,1724407877910,-693.97,0.00010999,2]
[335669676,1724407877919,-1019.97,0.00010999,2]
[335669677,1724407877929,-1024.76,0.00010999,2]
[335669678,1724407877938,-1019.97,0.00010999,2]
[335669679,1724407877948,-693.97,0.00010999,2]
[335669680,1724407877957,-1019.97,0.00010999,2]
[335669681,1724407877967,-1024.76,0.00010999,2]
[335669682,1724407877976,-693.97,0.00010999,2]
[335669683,1724407877986,-1024.76,0.00010999,2]
[335669684,1724407877995,-1020.11,0.00010999,2]
[335669685,1724407878004,-693.97,0.00010999,2]
[335669686,1724407878014,-1024.76,0.00010999,2]
[335669687,1724407878023,-693.97,0.00010999,2]
[335669688,1724407878033,-1024.80545789,0.00010999,2]
[335669689,1724407878042,-693.97,0.00010999,2]
[335669690,1724407878052,-694.20534723,0.00010999,2]
[335669691,1724407878063,-500.0,0.00010999,2]
[335669692,1724407878076,-500.0,0.00010999,2]
[335669693,1724407878087,-646.72,0.00010999,2]
[335669694,1724407878096,-500.0,0.00010999,2]
[335669695,1724407878106,-2857.66,0.00010999,2]
[335669696,1724407878116,-500.0,0.00010999,2]
[335669697,1724407878125,-2857.66,0.00010999,2]
[335669698,1724407878135,-500.0,0.00010999,2]
[335669699,1724407878286,-500.0,0.00010999,2]
[335669700,1724407878296,-2857.66,0.00010999,2]
[335669701,1724407878306,-585.09631438,0.00010999,2]
[335669702,1724407878316,-2857.66,0.00010999,2]
[335669703,1724407878326,-2857.66,0.00010999,2]
[335669704,1724407878335,-2857.66,0.00010999,2]
[335669705,1724407878345,-2857.66,0.00010999,2]
[335669706,1724407878354,-2857.66,0.00010999,2]
[335669707,1724407878363,-2857.66,0.00010999,2]
[335669708,1724407878372,-2857.66,0.00010999,2]
[335669709,1724407878382,-2857.71000001,0.00010999,2]
[335669710,1724407878393,-2060.0,0.00010999,2]
[335669711,1724407878403,-2060.0,0.00010999,2]
[335669712,1724407878412,-2060.0,0.00010999,2]
[335669713,1724407878421,-2060.0,0.00010999,2]
[335669714,1724407878431,-3221424.65008751,0.00011,2]
[335669715,1724407878441,-209.0,0.00011,2]
[335669716,1724407878450,-209.0,0.00011,2]
[335669717,1724407878459,-209.0,0.00011,2]
[335669718,1724407878469,-209.0,0.00011,2]
[335669719,1724407878478,-1584.0,0.00011,2]
[335669720,1724407878487,-1584.0,0.00011,2]
[335669721,1724407878497,-1584.0,0.00011,2]
[335669722,1724407878506,-1584.0,0.00011,2]
[335669723,1724407878516,-1584.0,0.00011,2]
[335669724,1724407878526,-1584.0,0.00011,2]
[335669725,1724407878534,-587.0,0.00011,2]
[335669726,1724407878544,-201.0,0.00011,2]
[335669727,1724407878554,-201.0,0.00011,2]
[335669728,1724407878563,-201.0,0.00011,2]
[335669729,1724407878573,-250.0,0.00011,2]
[335669730,1724407878582,-2000.0,0.00011,2]
[335669731,1724407878591,-2000.0,0.00011,2]
[335669732,1724407878601,-1052.18746683,0.00011,2]
[335669733,1724407878610,-1000.0,0.00011,2]
[335669734,1724407878620,-1000.0,0.00011,2]
[335669735,1724407878629,-1000.0,0.00011,2]
[335669736,1724407878639,-1000.0,0.00011,2]
[335669737,1724407878648,-1000.0,0.00011,2]
[335669738,1724407878658,-1000.0,0.00011,2]
[335669739,1724407878668,-1000.0,0.00011,2]
[335669740,1724407878677,-1000.0,0.00011,2]
[335669741,1724407878687,-1000.0,0.00011,2]
[335669742,1724407878696,-1000.0,0.00011,2]
[335669743,1724407878706,-1000.0,0.00011,2]
[335669744,1724407878716,-1000.0,0.00011,2]
[335669745,1724407878725,-1000.0,0.00011,2]
[335669746,1724407878735,-1000.0,0.00011,2]
[335669747,1724407878746,-767.17889144,0.00011,2]
[335669748,1724407878756,-5000.0,0.00011,2]
[335669749,1724407878766,-3753396.22361504,0.00011,2]
[335669750,1724407879028,-880.8,0.00010999,2]
[335669751,1724407879039,-1179.2,0.00010999,2]
[335669752,1724407879049,-9481.90414044,0.00011,2]
[335669753,1724407879060,-500.0,0.00011,2]
[335669754,1724407879176,-896.39,0.00010996,2]
[335669755,1724407879185,-896.39,0.00010996,2]
[335669756,1724407879194,-896.39,0.00010996,2]
[335669757,1724407879203,-896.39,0.00010997,2]
[335669758,1724407879212,-896.39,0.00010997,2]
[335669759,1724407879221,-896.39,0.00010997,2]
[335669760,1724407879231,-896.39,0.00010997,2]
[335669761,1724407879240,-896.39,0.00010997,2]
[335669762,1724407879249,-896.39,0.00010997,2]
[335669763,1724407879258,-10620.39820847,0.00011,2]
[335669764,1724407879270,-11226.60862972,0.00011,2]
[335669765,1724407879282,-852.18109769,0.00011,2]
[335669766,1724407879297,-670.56,0.00011,2]
[335669767,1724407879314,-896.39,0.00010997,2]
[335669768,1724407879323,-1389.45891763,0.00011,2]
[335669769,1724407879334,-400.57,0.00011,2]
[335669770,1724407879345,-451.23409272,0.00011,2]
[335669771,1724407879358,-343.68665496,0.00011,2]
[335669772,1724407879369,-515.83635347,0.00011,2]
[335669773,1724407879379,-584.82021014,0.00011,2]
[335669774,1724407879390,-26977.16239601,0.00011,2]
[335669775,1724407879402,-4717.28541024,0.00011,2]
[335669776,1724407879413,-4416.38735251,0.00011,2]
[335669777,1724407879428,-495.28749195,0.00011,2]
[335669778,1724407879439,-456.95008335,0.00011,2]
[335669779,1724407879450,-300.0,0.00011,2]
[335669780,1724407879461,-585.22668101,0.00011,2]
[335669781,1724407879472,-1346.51356479,0.00011,2]
[335669782,1724407879483,-27493.91517875,0.00011,2]
[335669783,1724407879494,-3075.0,0.00011,2]
[335669784,1724407886768,500.0,0.00027,120]
[335669785,1724407893803,5000.0,0.00027,120]
[335669786,1724407895532,500.0,0.00027,120]
[335669787,1724407904217,500.0,0.00027,120]
[335669788,1724407905700,2000.0,0.00027,120]
[335669789,1724407911530,500.0,0.00027,120]
[335669790,1724407925951,500.0,0.00027,120]
[335669791,1724407933238,500.0,0.00027,120]
[335669792,1724407936491,331.46544404,0.00027,120]
[335669793,1724407939203,500.0,0.00027,120]
[335669794,1724407946012,500.0,0.00027,120]
[335669795,1724407952782,500.0,0.00027,120]
[335669796,1724407961108,500.0,0.00027,120]
[335669797,1724407968887,500.0,0.00027,120]
[335669798,1724407975752,500.0,0.00027,120]
[335669799,1724407981511,500.0,0.00027,120]
[335669800,1724407987562,500.0,0.00027,120]
[335669801,1724407988570,2659.0,0.00025,60]
[335669802,1724407994742,500.0,0.00027,120]
[335669803,1724408000486,500.0,0.00027,120]
[335669804,1724408005161,1000.0,0.00026849,120]
[335669805,1724408005613,1000.0,0.00026849,120]
[335669806,1724408007625,500.0,0.00027,120]
[335669807,1724408014371,500.0,0.00027,120]
[335669808,1724408024844,500.0,0.00027,120]
[335669809,1724408033098,500.0,0.00027,120]
[335669810,1724408039231,500.0,0.00027,120]
[335669811,1724408039487,500.0,0.00025461,120]
[335669812,1724408039902,288.919517,0.00026179,120]
[335669813,1724408042407,150.0,0.000121,30]
[335669814,1724408043721,500.0,0.00024932,120]
[335669815,1724408047819,500.0,0.00027,120]
[335669816,1724408054559,500.0,0.00027,120]
[335669817,1724408060654,500.0,0.00027,120]
[335669818,1724408069148,500.0,0.00027,120]
[335669819,1724408073297,200.0,0.00025114,120]
[335669820,1724408073664,200.0,0.00026999,120]
[335669821,1724408074129,219.93,8.232e-05,2]
[335669822,1724408075490,500.0,0.00027,120]
[335669823,1724408081378,500.0,0.00027,120]
[335669824,1724408087156,500.0,0.00027,120]
[335669825,1724408093915,500.0,0.00027,120]
[335669826,1724408100557,500.0,0.00027,120]
[335669827,1724408108448,500.0,0.00027,120]
[335669828,1724408116420,500.0,0.00027,120]
[335669829,1724408125866,500.0,0.00027,120]
[335669830,1724408133614,500.0,0.00027,120]
[335669831,1724408140947,500.0,0.00027,120]
[335669832,1724408151770,500.0,0.00027,120]
[335669833,1724408171050,500.0,0.00027,120]
[335669834,1724408178761,500.0,0.00027,120]
[335669835,1724408186154,500.0,0.00027,120]
[335669836,1724408193753,500.0,0.00027,120]
[335669837,1724408201055,500.0,0.00027,120]
[335669838,1724408207831,500.0,0.00027,120]
[335669841,1724408215881,500.0,0.00027,120]
[335669844,1724408222873,500.0,0.00027,120]
[335669845,1724408229389,500.0,0.00027,120]
[335669846,1724408237060,500.0,0.00027,120]
[335669847,1724408241231,266.29,9.989e-05,2]
[335669848,1724408245319,500.0,0.00027,120]
[335669849,1724408252166,500.0,0.00027,120]
[335669850,1724408260991,500.0,0.00027,120]
[335669851,1724408268452,500.0,0.00027,120]
[335669852,1724408280430,500.0,0.00027,120]
[335669853,1724408289679,500.0,0.00027,120]
[335669854,1724408296106,500.0,0.00027,120]
[335669855,1724408302569,500.0,0.00027,120]
[335669856,1724408309234,500.0,0.00027,120]
[335669857,1724408315459,500.0,0.00027,120]
[335669858,1724408322918,500.0,0.00027,120]
[335669859,1724408329556,500.0,0.00027,120]
[335669860,1724408339073,500.0,0.00027,120]
[335669861,1724408345835,500.0,0.00027,120]
[335669862,1724408355496,500.0,0.00027,120]
[335669863,1724408377732,502.26636829,0.00027,120]
[335669864,1724408391369,490.87484426,0.00027,120]
[335669866,1724408439571,150.0,0.00027,120]
[335669867,1724408455659,1068.70779679,0.00025,90]
[335669868,1724408480992,331.46544404,0.00027,120]
[335669870,1724408506650,1285.86,9.982e-05,2]
[335669872,1724408606619,1000.0,0.00026849,120]
[335669873,1724408607283,208.93,8.219e-05,2]
[335669874,1724408607463,1000.0,0.00026849,120]
[335669875,1724408646866,500.0,0.00024932,120]
[335669876,1724408675469,200.0,0.00025249,120]
[335669877,1724408675908,200.0,0.00026999,120]
[335669878,1724408706130,304.97,0.00026986,120]
[335669879,1724408725193,645.86,0.00027,120]
[335669880,1724408725793,160.0,9.982e-05,2]
[335669881,1724408726049,1005.32725754,0.00025,60]
[335669884,1724408754091,3090.59594967,0.00025,60]
[335669888,1724408759227,1000.0,0.00025,60]
[335669890,1724408778217,186.96,9.975e-05,2]
[335669892,1724408800644,2344.1674649,0.00010009,2]
[335669894,1724408832330,1699.2713723,0.000163,120]
[335669897,1724408901725,3847.18447643,0.00025,60]
[335669898,1724408905649,439.56904759,0.00010009,2]
[335669922,1724408959116,171.41953258,0.00010009,2]
[335669935,1724408997531,442.73116855,0.00027,120]
[335669936,1724409015194,539.07,0.0001,2]
[335669940,1724409031658,-155.0,0.00010026,2]
[335669942,1724409031668,-155.0,0.00010097,2]
[335669944,1724409031677,-87.92779334,0.00010097,2]
[335669945,1724409031690,-864.16368623,0.00010097,2]
[335669946,1724409031703,-1262.12534313,0.00010097,2]
[335669947,1724409031712,-840.0,0.0001015,2]
[335669948,1724409031725,-208.93,0.00010475,2]
[335669949,1724409031734,-156.39812584,0.00010861,2]
[335669950,1724409031743,-155.23007428,0.00010861,2]
[335669951,1724409031753,-155.0,0.00010862,2]
[335669952,1724409031763,-527.19740296,0.00010862,2]
[335669953,1724409031772,-486.23645549,0.00010862,2]
[335669954,1724409031781,-3653.89498816,0.0001088,2]
[335669955,1724409031793,-3426.24761861,0.0001088,2]
[335669956,1724409031804,-4869.87206032,0.0001088,2]
[335669957,1724409031853,-393.3952172,0.0001088,2]
[335669958,1724409031866,-1386.0,0.0001088,2]
[335669959,1724409031877,-478.59396333,0.0001088,2]
[335669960,1724409031889,-638.9127711,0.0001088,2]
[335669961,1724409031900,-582.076,0.0001088,2]
[335669962,1724409031915,-851.45896926,0.0001088,2]
[335669963,1724409032013,-30.03969704,0.0001088,2]
[335669964,1724409032022,-305.00194793,0.00010888,2]
[335669965,1724409032032,-164.95835503,0.0001089,2]
[335669967,1724409032043,-479.84771151,0.0001089,2]
[335669969,1724409032055,-510.36567346,0.0001089,2]
[335669971,1724409032065,-426.64857768,0.0001089,2]
[335669973,1724409032074,-155.0,0.0001089,2]
[335669975,1724409032084,-378.19791124,0.00010892,2]
[335669977,1724409032093,-152.67384192,0.00010898,2]
[335669979,1724409032103,-211.03413449,0.00010899,2]
[335669980,1724409032112,-174.68941142,0.000109,2]
[335669981,1724409032121,-1478.14,0.000109,2]
[335669982,1724409032131,-1000.93600654,0.000109,2]
[335669983,1724409032141,-1204.38208942,0.000109,2]
[335669984,1724409032150,-500.0,0.00010912,2]
[335669985,1724409032160,-261.99552467,0.00010948,2]
[335669986,1724409032171,-1836.39289519,0.00010948,2]
[335669987,1724409032182,-1079.82897878,0.00010948,2]
[335669988,1724409032193,-4196.36686604,0.00010948,2]
[335669989,1724409037797,-304.22998605,0.00010799,2]
[335669990,1724409037806,-166.39780491,0.00010888,2]
[335669991,1724409037815,-155.0,0.0001089,2]
[335669992,1724409037826,-24.62220903,0.00010948,2]
[335669993,1724409037838,-994.47611212,0.00010948,2]
[335669994,1724409037851,-8044.62952128,0.00010948,2]
[335669995,1724409037860,-150.0,0.00010957,2]
[335669996,1724409037870,-500.0,0.00010958,2]
[335669997,1724409037880,-500.0,0.00010958,2]
[335669998,1724409037890,-500.0,0.00010958,2]
[335669999,1724409037900,-292.96,0.00010958,2]
[335670000,1724409037911,-200.0,0.00010959,2]
[335670001,1724409037920,-156.3,0.00010959,2]
[335670002,1724409037932,-5800.0,0.00010975,2]
[335670003,1724409037943,-5800.0,0.00010983,2]
[335670004,1724409037954,-500.0,0.00010986,5]
[335670005,1724409037965,-500.0,0.00010987,5]
[335670006,1724409037974,-500.0,0.00010989,2]
[335670007,1724409037983,-428.03996814,0.00010989,2]
[335670008,1724409037995,-425.82406344,0.0001099,5]
[335670009,1724409038004,-60288.03826297,0.0001099,4]
[335670010,1724409038016,-667.57069182,0.0001099,4]
[335670011,1724409038028,-1320.62843662,0.0001099,4]
[335670012,1724409038041,-1810.62200581,0.0001099,4]
[335670013,1724409038057,-500.0,0.0001099,4]
[335670056,1724409039897,-383.0020099,0.0001099,4]
[335670057,1724409040265,-548.40061847,0.0001099,4]
[335670064,1724409043122,-9040.40493919,0.0001099,4]
[335670074,1724409045868,-1250.22806894,0.0001099,4]
[335670075,1724409045898,-2059.54209762,0.0001099,4]
[335670076,1724409045980,-121551.29540793,0.0001099,4]
[335670077,1724409045995,-151629.01495672,0.0001099,4]
[335670078,1724409046006,-3278.19478437,0.0001099,4]
[335670079,1724409046017,-31534.52953045,0.0001099,4]
[335670080,1724409046027,-5800.0,0.00010992,2]
[335670081,1724409046037,-536.80823849,0.00010993,2]
[335670082,1724409046046,-2657.0,0.00010997,4]
[335670083,1724409046056,-39335.6306471,0.00010997,2]
[335670084,1724409046066,-500.0,0.00010998,2]
[335670085,1724409046075,-962.89462936,0.00010999,2]
[335670086,1724409046086,-500.0,0.00010999,2]
[335670087,1724409046095,-500.0,0.00010999,2]
[335670088,1724409046104,-553.57,0.00010999,2]
[335670089,1724409046114,-486.0999,0.00010999,2]
[335670090,1724409046123,-500.0,0.00010999,2]
[335670091,1724409046132,-500.0,0.00010999,2]
[335670092,1724409046141,-500.0,0.00010999,2]
[335670093,1724409046150,-500.0,0.00010999,2]
[335670094,1724409046160,-500.0,0.00010999,2]
[335670095,1724409046170,-500.0,0.00010999,2]
[335670096,1724409046179,-500.0,0.00010999,2]
[335670097,1724409046191,-500.0,0.00010999,2]
[335670098,1724409046200,-500.0,0.00010999,2]
[335670099,1724409046210,-500.0,0.00010999,2]
[335670100,1724409046219,-500.0,0.00010999,2]
[335670101,1724409046229,-500.0,0.00010999,2]
[335670102,1724409046238,-500.0,0.00010999,2]
[335670103,1724409046247,-500.0,0.00010999,2]
[335670104,1724409046256,-515.18888247,0.00010999,2]
[335670105,1724409046265,-500.0,0.00010999,2]
[335670106,1724409046274,-500.0,0.00010999,2]
[335670107,1724409046283,-247.37747213,0.00010999,2]
[335670108,1724409046295,-252.62252787,0.00010999,2]
[335670109,1724409046306,-500.0,0.00010999,2]
[335670110,1724409046325,-500.0,0.00010999,2]
[335670111,1724409046334,-500.0,0.00010999,2]
[335670112,1724409046345,-500.0,0.00010999,2]
[335670113,1724409046354,-500.0,0.00010999,2]
[335670114,1724409046364,-500.0,0.00010999,2]
[335670115,1724409046373,-500.0,0.00010999,2]
[335670117,1724409046382,-500.0,0.00010999,2]
[335670119,1724409046392,-451.13655933,0.00010999,2]
[335670120,1724409046401,-558.73,0.00010999,2]
[335670121,1724409046410,-558.73,0.00010999,2]
[335670122,1724409046420,-558.73,0.00010999,2]
[335670123,1724409046429,-558.73,0.00010999,2]
[335670124,1724409046438,-558.73,0.00010999,2]
[335670125,1724409046450,-558.73,0.00010999,2]
[335670126,1724409046465,-558.73,0.00010999,2]
[335670127,1724409046474,-558.73,0.00010999,2]
[335670128,1724409046483,-558.73,0.00010999,2]
[335670129,1724409046493,-558.73,0.00010999,2]
[335670130,1724409046504,-558.73,0.00010999,2]
[335670131,1724409046513,-558.73,0.00010999,2]
[335670132,1724409046523,-558.73,0.00010999,2]
[335670133,1724409046532,-558.73,0.00010999,2]
[335670134,1724409046541,-558.73,0.00010999,2]